bitfinex/quotes_BTCUSD_20240908
["timestamp","ask_amount","ask_price","bid_price","bid_amount"]
[1725783972948,0.12956905,54543.0,54539.0,0.17900174]
[1725783973173,0.12956905,54543.0,54539.0,0.17700174]
[1725783973844,0.25790905,54543.0,54539.0,0.0684]
[1725783974059,0.25790905,54543.0,54539.0,0.0664]
[1725783974479,0.25890905,54543.0,54539.0,0.196747]
[1725783974716,0.25990905,54543.0,54539.0,0.198747]
[1725783974935,0.25790905,54543.0,54539.0,0.194747]
[1725783975170,0.25790905,54543.0,54539.0,0.196747]
[1725783975389,0.25790905,54543.0,54539.0,0.198747]
[1725783979412,0.128341,54542.0,54539.0,0.0704]
[1725783979706,0.1,54541.0,54539.0,0.0704]
[1725783980777,0.100815,54541.0,54539.0,0.0684]
[1725783981017,0.100815,54541.0,54539.0,0.0704]
[1725783981483,0.100815,54541.0,54539.0,0.002]
[1725783981709,0.100815,54541.0,54537.0,0.128353]
[1725783982155,0.100815,54541.0,54539.0,0.002]
[1725783982390,0.101815,54541.0,54539.0,0.002]
[1725783982868,0.102815,54541.0,54539.0,0.004]
[1725783983092,0.101815,54541.0,54539.0,0.002]
[1725783983647,0.101815,54541.0,54539.0,0.004]
[1725783983743,0.100815,54541.0,54537.0,0.10437208]
[1725783984250,0.100815,54541.0,54537.0,0.10637208]
[1725783984714,0.100815,54541.0,54537.0,0.10437208]
[1725783984920,0.101815,54541.0,54539.0,0.002]
[1725783985337,0.102815,54541.0,54539.0,0.002]
[1725783985579,0.101815,54541.0,54537.0,0.10437208]
[1725783985795,0.101815,54541.0,54537.0,0.10637208]
[1725783986254,0.100815,54541.0,54537.0,0.10637208]
[1725783987316,0.100815,54541.0,54537.0,0.10437208]
[1725783987539,0.230158,54541.0,54539.0,0.002]
[1725783987994,0.229158,54541.0,54537.0,0.10437208]
[1725783988421,0.230158,54541.0,54537.0,0.10637208]
[1725783989272,0.231158,54541.0,54537.0,0.10637208]
[1725783989729,0.128346,54540.0,54537.0,0.002]
[1725783989957,0.1,54539.0,54537.0,0.002]
[1725783990373,0.1,54539.0,54536.0,0.0619]
[1725783990589,0.1,54539.0,54537.0,0.002]
[1725783991318,0.1,54539.0,54536.0,0.0619]
[1725783991527,0.1,54539.0,54537.0,0.002]
[1725783991528,0.101,54539.0,54537.0,0.002]
[1725783991961,0.102,54539.0,54537.0,0.002]
[1725783992185,0.128355,54536.0,54535.0,0.00163]
[1725783992401,0.228355,54536.0,54535.0,0.00163]
[1725783992850,0.25710985,54536.0,54535.0,0.00163]
[1725783993425,0.25810985,54536.0,54535.0,0.00163]
[1725783995098,0.25910985,54536.0,54535.0,0.00363]
[1725783995316,0.24955748,54536.0,54535.0,0.00363]
[1725783997962,0.27628273,54536.0,54535.0,0.00363]
[1725783998589,0.30503775,54536.0,54535.0,0.00363]
[1725783999416,0.17668275,54536.0,54535.0,0.00363]
[1725784000257,0.14692773,54536.0,54535.0,0.00163]
[1725784000474,0.14792773,54536.0,54535.0,0.00363]
[1725784000874,0.04792773,54536.0,54535.0,0.00363]
[1725784001103,0.04692773,54536.0,54535.0,0.00363]
[1725784001506,0.04792773,54536.0,54535.0,0.00363]
[1725784003410,0.07668278,54536.0,54535.0,0.00363]
[1725784003845,0.07668278,54536.0,54535.0,0.131987]
[1725784004072,0.07668278,54536.0,54535.0,0.193887]
[1725784004488,0.07668278,54536.0,54535.0,0.707317]
[1725784005218,0.07568278,54536.0,54535.0,0.707317]
[1725784005666,0.07668278,54536.0,54535.0,0.707317]
[1725784006627,0.04692773,54536.0,54535.0,0.705317]
[1725784006842,0.04792773,54536.0,54535.0,0.707317]
[1725784009675,0.07668245,54536.0,54535.0,0.707317]
[1725784012544,0.07568245,54536.0,54535.0,0.707317]
[1725784012759,0.07668245,54536.0,54535.0,0.707317]
[1725784013186,0.07568245,54536.0,54535.0,0.707317]
[1725784013396,0.07568245,54536.0,54535.0,0.705317]
[1725784013819,0.07668245,54536.0,54535.0,0.707317]
[1725784014223,0.07568245,54536.0,54535.0,0.705317]
[1725784014700,0.07668245,54536.0,54535.0,0.707317]
[1725784016464,0.04792773,54536.0,54535.0,0.707317]
[1725784019805,0.07668237,54536.0,54535.0,0.707317]
[1725784026534,0.04792773,54536.0,54535.0,0.707317]
[1725784029809,0.07668231,54536.0,54535.0,0.707317]
[1725784036097,0.07668231,54536.0,54535.0,0.645417]
[1725784036515,0.04792773,54536.0,54535.0,0.645417]
[1725784039751,0.07668229,54536.0,54535.0,0.645417]
[1725784040177,0.07668229,54536.0,54535.0,0.707717]
[1725784042531,0.338069,54545.0,54537.0,0.256704]
[1725784042744,0.01920248,54541.0,54537.0,0.256704]
[1725784043186,0.01920248,54541.0,54539.0,0.128348]
[1725784044916,0.01920248,54541.0,54539.0,0.130348]
[1725784045997,0.01920248,54541.0,54539.0,0.132348]
[1725784049498,0.04795671,54541.0,54539.0,0.132348]
[1725784053407,0.04877171,54541.0,54539.0,0.132348]
[1725784056447,0.02001748,54541.0,54539.0,0.132348]
[1725784059585,0.12001748,54541.0,54539.0,0.132348]
[1725784059817,0.04877168,54541.0,54539.0,0.132348]
[1725784061169,0.04877168,54541.0,54540.0,0.128346]
[1725784063231,0.04977168,54541.0,54540.0,0.131346]
[1725784066368,0.02101748,54541.0,54540.0,0.131346]
[1725784067005,0.02101748,54541.0,54540.0,0.003]
[1725784067217,0.193937,54544.0,54540.0,0.003]
[1725784067218,0.1,54542.0,54540.0,0.003]
[1725784067446,0.01920248,54542.0,54540.0,0.003]
[1725784068595,0.01920248,54542.0,54540.0,0.002]
[1725784068838,0.02020248,54542.0,54540.0,0.003]
[1725784069020,0.02020248,54542.0,54540.0,0.001]
[1725784069498,0.02020248,54542.0,54540.0,0.002]
[1725784069725,0.04895683,54542.0,54540.0,0.002]
[1725784069978,0.28335524,54545.0,54540.0,0.002]
[1725784070210,0.128337,54544.0,54541.0,0.0629]
[1725784070443,0.995329,54544.0,54541.0,0.0629]
[1725784070684,0.801906,54543.0,54541.0,0.0629]
[1725784071345,0.128337,54544.0,54541.0,0.0629]
[1725784071554,0.791996,54543.0,54541.0,0.0629]
[1725784071742,0.791996,54543.0,54541.0,0.0659]
[1725784072211,0.1,54542.0,54541.0,0.0629]
[1725784072421,0.1,54542.0,54541.0,0.0669]
[1725784072849,0.02875404,54542.0,54541.0,0.0669]
[1725784073350,0.02875404,54542.0,54541.0,0.0629]
[1725784074012,0.02875404,54542.0,54541.0,0.0639]
[1725784074859,0.02975404,54542.0,54541.0,0.0679]
[1725784076322,0.001,54542.0,54541.0,0.0679]
[1725784085532,0.02020248,54542.0,54541.0,0.0679]
[1725784086590,0.02020248,54542.0,54541.0,0.02439131]
[1725784087033,0.02020248,54542.0,54541.0,0.005]
[1725784088638,0.14854348,54542.0,54541.0,0.005]
[1725784088956,0.24854348,54542.0,54541.0,0.005]
[1725784089853,0.27729767,54542.0,54541.0,0.005]
[1725784091914,0.27729767,54542.0,54541.0,0.00663]
[1725784092912,0.76101767,54542.0,54541.0,0.00663]
[1725784093809,0.128345,54541.0,54539.0,0.03973083]
[1725784094046,0.128352,54538.0,54535.0,0.08343]
[1725784094267,0.1,54537.0,54535.0,0.08343]
[1725784095760,0.101,54537.0,54535.0,0.08643]
[1725784096762,0.102,54537.0,54535.0,0.08843]
[1725784097004,0.102,54537.0,54536.0,0.0638]
[1725784098118,0.101,54537.0,54536.0,0.0638]
[1725784098344,0.102,54537.0,54536.0,0.0638]
[1725784098805,0.101,54537.0,54536.0,0.0638]
[1725784099026,0.102,54537.0,54536.0,0.0658]
[1725784099717,0.13075519,54537.0,54536.0,0.0658]
[1725784105457,0.13075519,54537.0,54536.0,0.03979512]
[1725784106411,0.102,54537.0,54536.0,0.03979512]
[1725784110616,0.13075521,54537.0,54536.0,0.03979512]
[1725784116514,0.102,54537.0,54536.0,0.03979512]
[1725784119688,0.13075526,54537.0,54536.0,0.04142512]
[1725784119902,0.13157026,54537.0,54536.0,0.04142512]
[1725784125264,0.03157026,54537.0,54536.0,0.04142512]
[1725784126445,0.002815,54537.0,54536.0,0.04142512]
[1725784129778,0.03157009,54537.0,54536.0,0.04142512]
[1725784135891,0.03157009,54537.0,54536.0,0.12212512]
[1725784136573,0.002815,54537.0,54536.0,0.12212512]
[1725784137702,0.02201748,54537.0,54536.0,0.12212512]
[1725784140833,0.05077219,54537.0,54536.0,0.12212512]
[1725784146477,0.02201748,54537.0,54536.0,0.12212512]
[1725784149713,0.05077233,54537.0,54536.0,0.12212512]
[1725784151670,0.05077233,54537.0,54536.0,0.08433]
[1725784151891,0.05077233,54537.0,54536.0,0.00363]
[1725784155173,0.37107833,54537.0,54529.0,0.1427]
[1725784155391,0.128359,54535.0,54529.0,0.1427]
[1725784155604,0.22836,54534.0,54529.0,0.1427]
[1725784156499,0.22836,54534.0,54529.0,0.1447]
[1725784156718,0.128362,54533.0,54529.0,0.1447]
[1725784156925,0.1,54532.0,54529.0,0.1447]
[1725784157371,0.1,54532.0,54529.0,0.12003321]
[1725784157594,0.01920248,54531.0,54529.0,0.12003321]
[1725784157820,0.01920248,54531.0,54529.0,0.11803321]
[1725784158036,0.001,54534.0,54529.0,0.11803321]
[1725784158256,0.02020248,54532.0,54529.0,0.11803321]
[1725784158476,0.001,54532.0,54529.0,0.11803321]
[1725784158903,0.001,54531.0,54529.0,0.11803321]
[1725784159337,0.001,54532.0,54529.0,0.11803321]
[1725784159778,0.02875588,54531.0,54529.0,0.11803321]
[1725784160461,0.02975588,54531.0,54529.0,0.11803321]
[1725784161280,0.03075588,54531.0,54529.0,0.11803321]
[1725784165704,0.05742901,54531.0,54529.0,0.11803321]
[1725784166349,0.02867313,54531.0,54529.0,0.11803321]
[1725784166708,0.02767313,54531.0,54529.0,0.11803321]
[1725784167035,0.02867313,54531.0,54529.0,0.11803321]
[1725784167212,0.02767313,54531.0,54529.0,0.11803321]
[1725784167415,0.02867313,54531.0,54529.0,0.11966321]
[1725784170640,0.02767313,54531.0,54529.0,0.11966321]
[1725784170841,0.05542909,54531.0,54529.0,0.11966321]
[1725784170979,0.05642909,54531.0,54529.0,0.11966321]
[1725784171201,0.05742909,54531.0,54529.0,0.11966321]
[1725784173776,0.05642909,54531.0,54529.0,0.11966321]
[1725784174180,0.07563157,54531.0,54529.0,0.11966321]
[1725784174419,0.07663157,54531.0,54529.0,0.11966321]
[1725784175227,0.07663157,54531.0,54530.0,0.0666]
[1725784176402,0.04687561,54531.0,54530.0,0.0666]
[1725784177119,0.04787561,54531.0,54530.0,0.0666]
[1725784177326,0.04787561,54531.0,54530.0,0.1425]
[1725784178130,0.04687561,54531.0,54530.0,0.1425]
[1725784178341,0.04587561,54531.0,54530.0,0.1425]
[1725784178563,0.04687561,54531.0,54530.0,0.1425]
[1725784179904,0.07563139,54531.0,54530.0,0.1425]
[1725784180133,0.07663139,54531.0,54530.0,0.1425]
[1725784186473,0.04787561,54531.0,54530.0,0.1425]
[1725784192443,0.04787561,54531.0,54529.0,0.00163]
[1725784192699,0.07663144,54531.0,54529.0,0.00163]
[1725784193166,0.07563144,54531.0,54529.0,0.00163]
[1725784193379,0.07463144,54531.0,54529.0,0.00163]
[1725784193606,0.17563144,54531.0,54529.0,0.00163]
[1725784193820,0.17663144,54531.0,54529.0,0.00163]
[1725784196257,0.14787561,54531.0,54529.0,0.00163]
[1725784198010,0.14687561,54531.0,54529.0,0.00163]
[1725784198441,0.14787561,54531.0,54529.0,0.00163]
[1725784198666,0.14687561,54531.0,54529.0,0.00163]
[1725784198894,0.14787561,54531.0,54529.0,0.00163]
[1725784199252,0.14687561,54531.0,54529.0,0.00163]
[1725784199471,0.27524261,54531.0,54529.0,0.00163]
[1725784199675,0.30499875,54531.0,54529.0,0.00163]
[1725784201945,0.30399875,54531.0,54529.0,0.00163]
[1725784202153,0.30299875,54531.0,54529.0,0.00163]
[1725784202401,0.30399875,54531.0,54529.0,0.00163]
[1725784202617,0.30499875,54531.0,54529.0,0.00163]
[1725784202814,0.30399875,54531.0,54529.0,0.00163]
[1725784203033,0.30499875,54531.0,54529.0,0.00163]
[1725784203265,0.28553139,54531.0,54529.0,0.00163]
[1725784203490,0.15716439,54531.0,54530.0,0.0609]
[1725784203727,0.18553139,54531.0,54530.0,0.1377]
[1725784203966,0.15716439,54531.0,54530.0,0.1377]
[1725784204421,0.15616439,54531.0,54530.0,0.1377]
[1725784205079,0.15516439,54531.0,54530.0,0.1377]
[1725784205296,0.15616439,54531.0,54530.0,0.1377]
[1725784205512,0.15716439,54531.0,54530.0,0.1377]
[1725784205711,0.15616439,54531.0,54530.0,0.1377]
[1725784206131,0.15716439,54531.0,54530.0,0.1377]
[1725784206378,0.12840825,54531.0,54530.0,0.1377]
[1725784207705,0.02840825,54531.0,54530.0,0.1377]
[1725784209848,0.05716396,54531.0,54530.0,0.1377]
[1725784210346,0.05716396,54531.0,54529.0,0.00163]
[1725784211262,0.05516396,54531.0,54529.0,0.00163]
[1725784211680,0.05716396,54531.0,54529.0,0.00163]
[1725784212559,0.05616396,54531.0,54529.0,0.00163]
[1725784212789,0.05716396,54531.0,54529.0,0.00163]
[1725784213013,0.05616396,54531.0,54529.0,0.00163]
[1725784214365,0.05716396,54531.0,54529.0,0.00163]
[1725784216486,0.02840825,54531.0,54529.0,0.00163]
[1725784219681,0.05716419,54531.0,54529.0,0.00163]
[1725784221042,0.05716419,54531.0,54529.0,0.010397]
[1725784223561,0.05716419,54531.0,54530.0,0.0616]
[1725784224481,0.05616419,54531.0,54530.0,0.141]
[1725784224724,0.04795842,54531.0,54530.0,0.1896674]
[1725784224952,0.04795842,54531.0,54530.0,0.6069831]
[1725784224953,0.02975594,54531.0,54530.0,0.6069831]
[1725784225185,0.03075594,54531.0,54530.0,0.71726425]
[1725784225413,0.03075594,54531.0,54530.0,0.2823258]
[1725784225859,0.02975594,54531.0,54530.0,0.2823258]
[1725784226088,0.03075594,54531.0,54530.0,0.2823258]
[1725784226323,0.01920248,54540.0,54530.0,0.2823258]
[1725784226324,0.000815,54555.0,54537.0,0.002]
[1725784226544,0.000815,54555.0,54539.0,0.1436]
[1725784226820,0.129126,54555.0,54541.0,0.0804]
[1725784227048,0.02796222,54555.0,54544.0,0.0804]
[1725784227305,0.15627322,54555.0,54545.0,0.06686607]
[1725784227990,0.28458422,54555.0,54545.0,0.06686607]
[1725784228244,0.128318,54552.0,54545.0,0.06686607]
[1725784228483,0.12832,54551.0,54545.0,0.0632]
[1725784228723,0.1,54551.0,54545.0,0.0632]
[1725784228961,0.1,54552.0,54545.0,0.0632]
[1725784229180,0.228318,54552.0,54545.0,0.0672]
[1725784229466,0.228318,54552.0,54545.0,0.0632]
[1725784230323,0.228318,54552.0,54545.0,0.0722]
[1725784230534,0.02874655,54551.0,54545.0,0.0732]
[1725784231231,0.02874655,54551.0,54545.0,0.0722]
[1725784231592,0.02874655,54551.0,54545.0,0.0782]
[1725784231773,0.02874655,54551.0,54545.0,0.0692]
[1725784231978,0.02874655,54551.0,54545.0,0.0632]
[1725784232201,0.02874655,54551.0,54545.0,0.0702]
[1725784232419,0.02874655,54551.0,54545.0,0.0792]
[1725784232420,0.15806755,54551.0,54545.0,0.0792]
[1725784232637,0.1,54550.0,54545.0,0.0792]
[1725784233065,0.1,54550.0,54545.0,0.0702]
[1725784233309,0.1,54550.0,54545.0,0.0812]
[1725784233517,0.1,54550.0,54545.0,0.0702]
[1725784233726,0.1,54550.0,54545.0,0.0632]
[1725784233934,0.1,54550.0,54545.0,0.0712]
[1725784233935,0.101,54550.0,54545.0,0.0712]
[1725784234773,0.229322,54550.0,54545.0,0.0712]
[1725784235632,0.230322,54550.0,54545.0,0.0832]
[1725784237053,0.230322,54550.0,54545.0,0.0752]
[1725784237054,0.229322,54550.0,54545.0,0.0752]
[1725784237481,0.229322,54550.0,54545.0,0.0722]
[1725784238147,0.230137,54550.0,54545.0,0.0722]
[1725784238991,0.231137,54550.0,54545.0,0.0852]
[1725784239871,0.02874701,54549.0,54545.0,0.0852]
[1725784240817,0.02874701,54549.0,54546.0,0.0639]
[1725784241256,0.02974701,54549.0,54547.0,0.1417]
[1725784241694,0.02874701,54549.0,54547.0,0.1417]
[1725784241910,0.04794949,54549.0,54547.0,0.1417]
[1725784242349,0.04894949,54549.0,54547.0,0.1417]
[1725784242569,0.04794949,54549.0,54547.0,0.1417]
[1725784243010,0.04994949,54549.0,54547.0,0.1547]
[1725784243446,0.04894949,54549.0,54547.0,0.1547]
[1725784243867,0.04994949,54549.0,54547.0,0.1667]
[1725784244349,0.04894949,54549.0,54547.0,0.1547]
[1725784244793,0.04994949,54549.0,54547.0,0.1667]
[1725784244989,0.04894949,54549.0,54547.0,0.1537]
[1725784245424,0.04894949,54549.0,54547.0,0.1667]
[1725784245425,0.07690164,54549.0,54547.0,0.1667]
[1725784246330,0.04815463,54549.0,54547.0,0.1667]
[1725784249176,0.04715463,54549.0,54547.0,0.1537]
[1725784249607,0.04715463,54549.0,54547.0,0.1547]
[1725784249821,0.0759012,54549.0,54547.0,0.1547]
[1725784250029,0.0769012,54549.0,54547.0,0.1667]
[1725784253139,0.0769012,54549.0,54547.0,0.1028]
[1725784253358,0.0769012,54549.0,54548.0,0.0654]
[1725784254892,0.0759012,54549.0,54548.0,0.0654]
[1725784255960,0.0749012,54549.0,54548.0,0.0654]
[1725784256174,0.0759012,54549.0,54548.0,0.0904]
[1725784256392,0.04815463,54549.0,54548.0,0.0904]
[1725784259668,0.07690097,54549.0,54548.0,0.0904]
[1725784260806,0.20522497,54549.0,54548.0,0.025]
[1725784261026,0.71852297,54549.0,54548.0,0.025]
[1725784261271,0.81852297,54549.0,54548.0,0.025]
[1725784261995,0.87852297,54549.0,54548.0,0.025]
[1725784262434,0.87933797,54549.0,54548.0,0.025]
[1725784262677,0.62268897,54549.0,54548.0,0.025]
[1725784263378,0.87933797,54549.0,54548.0,0.025]
[1725784263627,0.62268897,54549.0,54548.0,0.025]
[1725784264549,0.87933797,54549.0,54548.0,0.025]
[1725784264772,0.62268897,54549.0,54548.0,0.025]
[1725784265839,0.87933797,54549.0,54548.0,0.025]
[1725784266066,0.62268897,54549.0,54548.0,0.025]
[1725784266496,0.87933797,54549.0,54548.0,0.025]
[1725784267200,0.62268897,54549.0,54548.0,0.025]
[1725784268416,0.87933797,54549.0,54548.0,0.025]
[1725784269362,0.81933797,54549.0,54548.0,0.025]
[1725784270008,0.56268897,54549.0,54548.0,0.025]
[1725784271300,0.81933797,54549.0,54548.0,0.025]
[1725784271516,0.56268897,54549.0,54548.0,0.025]
[1725784271743,0.81933797,54549.0,54548.0,0.025]
[1725784275346,0.79059163,54549.0,54548.0,0.025]
[1725784276042,0.79059163,54549.0,54548.0,0.00529732]
[1725784278587,0.81933958,54549.0,54548.0,0.00529732]
[1725784279063,0.79059163,54549.0,54548.0,0.00529732]
[1725784279326,0.85479163,54549.0,54548.0,0.00529732]
[1725784279602,0.0642,54546.0,54531.0,0.4912133]
[1725784279835,0.17400808,54543.0,54531.0,0.1369]
[1725784280097,0.128364,54532.0,54531.0,0.1369]
[1725784280345,0.228364,54532.0,54531.0,0.1369]
[1725784280864,0.228364,54532.0,54529.0,0.010397]
[1725784280865,0.128369,54530.0,54529.0,0.072297]
[1725784281330,0.228369,54530.0,54529.0,0.072297]
[1725784282743,0.25712291,54530.0,54529.0,0.072297]
[1725784283478,0.25812291,54530.0,54529.0,0.072297]
[1725784284141,0.25912291,54530.0,54529.0,0.072297]
[1725784284358,0.25712291,54530.0,54529.0,0.072297]
[1725784285724,0.12975391,54530.0,54529.0,0.072297]
[1725784285945,0.12875391,54530.0,54529.0,0.072297]
[1725784286163,0.12975391,54530.0,54529.0,0.072297]
[1725784286401,0.13075391,54530.0,54529.0,0.072297]
[1725784287012,0.13175391,54530.0,54529.0,0.072297]
[1725784289933,0.03175391,54530.0,54529.0,0.072297]
[1725784290622,0.03075391,54530.0,54529.0,0.072297]
[1725784290830,0.03175391,54530.0,54529.0,0.072297]
[1725784291102,0.02975391,54530.0,54529.0,0.072297]
[1725784292890,0.03075391,54530.0,54529.0,0.072297]
[1725784294508,0.21391479,54534.0,54529.0,0.072297]
[1725784294745,0.128365,54532.0,54529.0,0.072297]
[1725784295657,0.02695785,54534.0,54529.0,0.072297]
[1725784295872,0.14756748,54532.0,54529.0,0.072297]
[1725784296318,0.14856748,54532.0,54529.0,0.073297]
[1725784296564,0.1,54531.0,54529.0,0.072297]
[1725784296992,0.1,54531.0,54529.0,0.073297]
[1725784297216,0.1,54531.0,54529.0,0.072297]
[1725784297437,0.02120248,54532.0,54529.0,0.073297]
[1725784297904,0.02120248,54532.0,54529.0,0.072297]
[1725784298326,0.14856748,54532.0,54529.0,0.072297]
[1725784298545,0.1,54531.0,54529.0,0.072297]
[1725784298839,0.101,54531.0,54529.0,0.074297]
[1725784299108,0.101,54531.0,54529.0,0.075297]
[1725784299329,0.101,54531.0,54529.0,0.073297]
[1725784299542,0.101,54531.0,54529.0,0.075297]
[1725784299767,0.001,54531.0,54530.0,0.0769]
[1725784299997,0.001,54531.0,54530.0,0.1382]
[1725784300447,0.002,54531.0,54530.0,0.1382]
[1725784300896,0.001,54531.0,54530.0,0.1382]
[1725784301823,0.01920248,54532.0,54530.0,0.1382]
[1725784302042,0.001,54531.0,54530.0,0.1392]
[1725784302515,0.002,54531.0,54530.0,0.1402]
[1725784302755,0.01920248,54532.0,54530.0,0.1382]
[1725784302971,0.02020248,54532.0,54530.0,0.1392]
[1725784303194,0.02120248,54532.0,54530.0,0.1402]
[1725784303419,0.02020248,54532.0,54530.0,0.1392]
[1725784303652,0.01920248,54532.0,54530.0,0.1382]
[1725784303877,0.001,54531.0,54530.0,0.1392]
[1725784304125,0.01920248,54532.0,54530.0,0.1382]
[1725784304351,0.02020248,54532.0,54530.0,0.1392]
[1725784305015,0.001,54531.0,54530.0,0.1402]
[1725784305455,0.02020248,54532.0,54530.0,0.1392]
[1725784305918,0.02120248,54532.0,54530.0,0.1402]
[1725784306128,0.02020248,54532.0,54530.0,0.1392]
[1725784306345,0.01920248,54532.0,54530.0,0.1382]
[1725784306627,0.02020248,54532.0,54530.0,0.1392]
[1725784306845,0.001,54531.0,54530.0,0.1383]
[1725784307059,0.001,54531.0,54530.0,0.1393]
[1725784307814,0.001,54531.0,54530.0,0.1383]
[1725784308010,0.01920248,54532.0,54530.0,0.1373]
[1725784308484,0.02020248,54532.0,54530.0,0.1383]
[1725784308708,0.001,54531.0,54530.0,0.1393]
[1725784309798,0.001,54531.0,54530.0,0.1383]
[1725784310026,0.002,54531.0,54530.0,0.1393]
[1725784310234,0.001,54531.0,54530.0,0.1383]
[1725784310460,0.001,54531.0,54530.0,0.1393]
[1725784310688,0.001,54531.0,54530.0,0.1383]
[1725784311526,0.002,54531.0,54530.0,0.1393]
[1725784311745,0.01920248,54532.0,54530.0,0.1373]
[1725784311973,0.001,54531.0,54530.0,0.1383]
[1725784312214,0.002,54531.0,54530.0,0.1393]
[1725784312943,0.001,54531.0,54530.0,0.1383]
[1725784313170,0.001,54531.0,54530.0,0.1393]
[1725784314585,0.001,54531.0,54530.0,0.1383]
[1725784315053,0.002,54531.0,54530.0,0.1393]
[1725784315530,0.002,54531.0,54530.0,0.1623]
[1725784315784,0.002,54531.0,54530.0,0.1723]
[1725784316682,0.002,54531.0,54530.0,0.1743]
[1725784318317,0.002,54531.0,54530.0,0.1723]
[1725784319000,0.002,54531.0,54530.0,0.1623]
[1725784319976,0.002,54531.0,54530.0,0.17596695]
[1725784321359,0.002,54531.0,54530.0,0.17959895]
[1725784323225,0.002,54531.0,54530.0,0.19959895]
[1725784323713,0.002,54531.0,54530.0,0.28213903]
[1725784323937,0.002,54531.0,54530.0,0.71691623]
[1725784324172,0.002,54531.0,54530.0,0.60686278]
[1725784324389,0.000816,54534.0,54533.0,0.012]
[1725784324630,0.000816,54534.0,54533.0,0.67093044]
[1725784324890,0.000816,54534.0,54533.0,0.26166661]
[1725784325342,0.000816,54534.0,54533.0,0.17906656]
[1725784325556,0.000816,54534.0,54533.0,0.23513032]
[1725784325793,0.001816,54534.0,54533.0,0.23513032]
[1725784326479,0.001816,54534.0,54533.0,0.18006656]
[1725784327053,0.001816,54534.0,54533.0,0.19406656]
[1725784333661,0.79699119,54591.0,54533.0,0.19406656]
[1725784333888,0.79699119,54591.0,54535.0,0.0601]
[1725784333889,0.128335,54545.0,54535.0,0.0601]
[1725784334112,0.128335,54545.0,54537.0,0.0601]
[1725784334324,0.128335,54545.0,54538.0,0.00366657]
[1725784335274,0.129335,54545.0,54539.0,0.0601]
[1725784335504,0.128335,54545.0,54539.0,0.0601]
[1725784335983,0.1,54544.0,54539.0,0.0601]
[1725784336451,0.1,54544.0,54540.0,0.0786]
[1725784336690,0.229334,54545.0,54540.0,0.0786]
[1725784337113,0.228334,54545.0,54540.0,0.0786]
[1725784337570,0.229334,54545.0,54540.0,0.0786]
[1725784337793,0.228334,54545.0,54540.0,0.0786]
[1725784337999,0.229334,54545.0,54540.0,0.0926]
[1725784338208,0.230334,54545.0,54540.0,0.0926]
[1725784338635,0.229334,54545.0,54540.0,0.0926]
[1725784338901,0.228334,54545.0,54540.0,0.0916]
[1725784339110,0.230334,54545.0,54540.0,0.1056]
[1725784340218,0.229334,54545.0,54540.0,0.0926]
[1725784340636,0.230334,54545.0,54540.0,0.028]
[1725784341265,0.102,54545.0,54540.0,0.028]
[1725784343057,0.102,54545.0,54541.0,0.06376658]
[1725784343270,0.102,54545.0,54543.0,0.0601]
[1725784343271,0.002,54545.0,54543.0,0.0601]
[1725784343484,0.002,54545.0,54544.0,0.00366633]
[1725784343698,0.002,54545.0,54544.0,0.06376633]
[1725784343908,0.05614236,54547.0,54544.0,0.06376633]
[1725784344355,0.002,54545.0,54544.0,0.06376633]
[1725784344788,0.001,54545.0,54544.0,0.06376633]
[1725784344997,0.001,54545.0,54544.0,0.07776633]
[1725784344998,0.000815,54545.0,54544.0,0.07776633]
[1725784345216,0.000815,54545.0,54544.0,0.07576633]
[1725784346134,0.000815,54545.0,54544.0,0.08976633]
[1725784346564,0.000815,54545.0,54544.0,0.0741]
[1725784347455,0.001815,54545.0,54544.0,0.0741]
[1725784347678,0.001815,54545.0,54544.0,0.0881]
[1725784347889,0.002815,54545.0,54544.0,0.0881]
[1725784350028,0.02949178,54545.0,54544.0,0.0881]
[1725784367658,0.02949178,54545.0,54544.0,0.028]
[1725784367659,0.67116178,54545.0,54544.0,0.028]
[1725784367898,0.83486178,54545.0,54544.0,0.028]
[1725784368627,0.83486178,54545.0,54544.0,0.02963]
[1725784369084,0.77116178,54545.0,54544.0,0.02963]
[1725784370593,0.77116178,54545.0,54544.0,0.01285315]
[1725784380268,0.77316178,54545.0,54544.0,0.01285315]
[1725784382787,1.17332978,54545.0,54544.0,0.01285315]
[1725784383179,1.20207715,54545.0,54544.0,0.01285315]
[1725784384046,1.20107715,54545.0,54544.0,0.00163]
[1725784384242,1.20007715,54545.0,54544.0,0.00163]
[1725784384874,1.20107715,54545.0,54544.0,0.01163]
[1725784385308,1.20007715,54545.0,54544.0,0.00163]
[1725784385509,1.20007715,54545.0,54544.0,0.01163]
[1725784385510,1.20107715,54545.0,54544.0,0.01163]
[1725784385728,1.20207715,54545.0,54544.0,0.01363]
[1725784386149,1.20107715,54545.0,54544.0,0.01163]
[1725784386595,1.20207715,54545.0,54544.0,0.01263]
[1725784388762,0.56040715,54545.0,54540.0,0.00163]
[1725784388984,0.964604,54541.0,54540.0,0.00163]
[1725784389197,1.064604,54541.0,54540.0,0.00163]
[1725784389625,1.08380648,54541.0,54540.0,0.00163]
[1725784390500,1.08380648,54541.0,54540.0,0.00363]
[1725784391134,1.08480648,54541.0,54540.0,0.00763]
[1725784392017,1.08380648,54541.0,54540.0,0.00163]
[1725784392237,1.08380648,54541.0,54540.0,0.00263]
[1725784392238,1.08480648,54541.0,54540.0,0.00263]
[1725784392676,1.08380648,54541.0,54540.0,0.00163]
[1725784392881,1.08480648,54541.0,54540.0,0.00163]
[1725784393311,1.11355708,54541.0,54540.0,0.00163]
[1725784394219,1.11255708,54541.0,54540.0,0.00163]
[1725784394423,1.11255708,54541.0,54540.0,0.00563]
[1725784394651,1.11355708,54541.0,54540.0,0.00563]
[1725784397918,1.11255708,54541.0,54540.0,0.00163]
[1725784398130,1.11255708,54541.0,54540.0,0.00363]